bitfinex-derivatives/quotes_BTCF0:USTF0_20250724
["timestamp","ask_amount","ask_price","bid_price","bid_amount"]
[1753333460478,0.60218463,117950.0,117940.0,0.80675]
[1753333460978,0.60218463,117950.0,117940.0,0.21151]
[1753333461177,0.60218463,117950.0,117940.0,0.80675]
[1753333462079,0.60218463,117950.0,117940.0,0.21151]
[1753333462279,0.60218463,117950.0,117940.0,0.80671]
[1753333462984,0.60218463,117950.0,117940.0,0.19152]
[1753333463182,0.60218463,117950.0,117940.0,0.07578]
[1753333463386,1.36695263,117950.0,117940.0,0.001]
[1753333463581,1.36695263,117950.0,117920.0,0.21051]
[1753333463582,0.4497088,117930.0,117920.0,0.21051]
[1753333463779,0.4699319,117930.0,117920.0,0.80571]
[1753333464176,0.4699319,117930.0,117920.0,0.0306]
[1753333464483,0.4699319,117930.0,117920.0,0.19052]
[1753333464780,0.4699319,117930.0,117920.0,0.21051]
[1753333464982,0.4286719,117930.0,117920.0,0.3935132]
[1753333465177,0.1897219,117930.0,117920.0,0.3935132]
[1753333465378,0.0202231,117930.0,117920.0,0.3935132]
[1753333465583,0.1897219,117930.0,117920.0,0.3935132]
[1753333465784,0.1897219,117930.0,117920.0,0.3945132]
[1753333465986,0.1907219,117930.0,117920.0,0.225]
[1753333466287,0.4709319,117930.0,117920.0,0.9995932]
[1753333466482,0.4709319,117930.0,117920.0,0.81815]
[1753333466683,0.4709319,117930.0,117920.0,0.81847]
[1753333467290,0.4709319,117930.0,117920.0,0.81879]
[1753333467585,0.4709319,117930.0,117920.0,0.21251]
[1753333468487,0.4709319,117930.0,117920.0,0.002]
[1753333468794,0.4709319,117930.0,117920.0,0.80016]
[1753333468984,0.4709319,117930.0,117920.0,0.82015]
[1753333469382,0.4709319,117930.0,117920.0,0.12548]
[1753333469585,0.4709319,117930.0,117920.0,0.07678]
[1753333469788,0.6405319,117930.0,117920.0,0.002]
[1753333469992,0.64908187,117930.0,117920.0,0.61064]
[1753333470187,0.47948187,117930.0,117920.0,0.002]
[1753333470393,0.64908187,117930.0,117920.0,0.002]
[1753333471686,0.70952252,117930.0,117920.0,0.002]
[1753333471882,0.6405319,117930.0,117920.0,0.002]
[1753333472688,0.4709319,117930.0,117920.0,0.002]
[1753333474092,0.4709319,117930.0,117920.0,0.0823]
[1753333474298,0.4709319,117930.0,117920.0,0.18435]
[1753333474490,0.4709319,117930.0,117920.0,0.20113]
[1753333474689,0.4709319,117930.0,117920.0,0.3811332]
[1753333475287,0.2850819,117930.0,117920.0,0.3811332]
[1753333475698,0.1155831,117930.0,117920.0,0.3811332]
[1753333476097,0.0212231,117930.0,117920.0,0.3811332]
[1753333476999,0.16275,117950.0,117920.0,0.3811332]
[1753333477000,0.19929,117960.0,117950.0,0.3806601]
[1753333477302,0.2582714,117970.0,117960.0,0.3806457]
[1753333477492,0.05229,117970.0,117960.0,0.3806457]
[1753333477894,0.4324273,117980.0,117970.0,0.2593213]
[1753333478094,0.5281673,117980.0,117970.0,0.9920313]
[1753333478298,0.3558673,117980.0,117970.0,0.9920313]
[1753333479288,0.3598673,117980.0,117970.0,0.9920313]
[1753333479694,0.3104473,117980.0,117970.0,0.9920313]
[1753333480097,0.3174473,117980.0,117970.0,1.00136031]
[1753333481200,0.3668673,117980.0,117970.0,1.00136031]
[1753333481701,0.3668673,117980.0,117970.0,0.38996031]
[1753333481900,0.3668673,117980.0,117970.0,1.00220031]
[1753333482500,0.1804388,117980.0,117970.0,1.00220031]
[1753333483597,0.180427,117980.0,117970.0,1.00220031]
[1753333484396,0.232717,117980.0,117970.0,1.00220031]
[1753333487006,0.180427,117980.0,117970.0,1.00220031]
[1753333487900,0.011,117980.0,117970.0,1.00220031]
[1753333488108,0.011,117980.0,117970.0,1.1717283]
[1753333488401,0.1694243,117990.0,117980.0,0.380617]
[1753333489195,1.8981739,118000.0,117990.0,0.2592926]
[1753333489497,1.8064015,118000.0,117990.0,0.9923626]
[1753333489699,1.7640493,118000.0,117990.0,0.9924826]
[1753333490095,1.8134693,118000.0,117990.0,0.9924826]
[1753333490401,1.8174693,118000.0,117990.0,0.9934826]
[1753333491003,1.8174693,118000.0,117990.0,0.3816026]
[1753333491204,1.8174693,118000.0,117990.0,0.9934826]
[1753333491401,1.8174693,118000.0,117990.0,0.3816026]
[1753333491605,1.8785093,118000.0,117990.0,0.9939226]
[1753333492409,1.8745093,118000.0,117990.0,0.9929226]
[1753333492601,1.8134693,118000.0,117990.0,0.9939226]
[1753333493303,1.5,118000.0,117990.0,0.9939226]
[1753333493907,1.45,118000.0,117990.0,1.1634186]
[1753333494106,0.2118351,118010.0,118000.0,0.2255283]
[1753333494411,0.2612551,118010.0,118000.0,0.2896083]
[1753333495007,0.4058551,118010.0,118000.0,0.2896083]
[1753333495203,0.4423951,118010.0,118000.0,0.2896083]
[1753333495404,0.4858451,118010.0,118000.0,0.2906083]
[1753333495999,0.4858451,118010.0,118000.0,0.05713]
[1753333496203,0.4858451,118010.0,118000.0,0.8392883]
[1753333496404,0.4858451,118010.0,118000.0,0.8422883]
[1753333496606,0.4858451,118010.0,118000.0,0.06013]
[1753333496806,0.4858451,118010.0,118000.0,0.8971483]
[1753333497914,0.4858451,118010.0,118000.0,0.9066483]
[1753333498710,0.04952,118010.0,118000.0,0.9066483]
[1753333499703,0.2189039,118010.0,118000.0,0.9066483]
[1753333499914,0.1694839,118010.0,118000.0,0.9066483]
[1753333500418,1.85233448,118010.0,118000.0,0.004]
[1753333500710,1.8523336,118010.0,118000.0,0.61808]
[1753333500910,0.2441326,117990.0,117980.0,0.0969356]
[1753333501115,0.4434226,117990.0,117980.0,0.9378036]
[1753333501511,0.4434226,117990.0,117980.0,0.9388836]
[1753333501816,0.4434226,117990.0,117980.0,0.3224836]
[1753333502114,0.4434226,117990.0,117980.0,0.3234836]
[1753333502311,0.4434226,117990.0,117980.0,0.9401236]
[1753333503112,0.4434226,117990.0,117980.0,0.9402436]
[1753333503310,0.463555,117990.0,117980.0,0.9402436]
[1753333503617,0.465555,117990.0,117980.0,0.9402436]
[1753333503915,0.465555,117990.0,117980.0,0.9392436]
[1753333504814,0.465555,117990.0,117980.0,0.9494736]
[1753333505517,0.465555,117990.0,117980.0,0.9504736]
[1753333505909,0.0221324,117990.0,117980.0,0.9504736]
[1753333506115,1.9187656,118010.0,118000.0,0.2717783]
[1753333506314,1.9187656,118010.0,118000.0,0.8889383]
[1753333507427,1.9197656,118010.0,118000.0,0.95736416]
[1753333507630,1.9197656,118010.0,118000.0,0.94713416]
[1753333507926,1.9227656,118010.0,118000.0,0.94713416]
[1753333508127,1.9217656,118010.0,118000.0,0.94713416]
[1753333508325,1.9217656,118010.0,118000.0,0.94813416]
[1753333509428,1.9187656,118010.0,118000.0,0.8473983]
[1753333510930,1.9187656,118010.0,118000.0,0.61816]
[1753333511128,1.9187656,118010.0,118000.0,0.61812]
[1753333511330,1.9187656,118010.0,118000.0,0.61912]
[1753333513032,1.9187656,118010.0,118000.0,0.7885183]
[1753333513233,1.9187656,118010.0,118000.0,0.61912]
[1753333514034,1.9187656,118010.0,118000.0,0.7875183]
[1753333515030,1.9197656,118010.0,118000.0,0.7875183]
[1753333515734,1.9187656,118010.0,118000.0,0.7865183]
[1753333515938,1.9207656,118010.0,118000.0,0.7865183]
[1753333516335,1.9187656,118010.0,118000.0,0.7865183]
[1753333516538,1.9197656,118010.0,118000.0,0.7865183]
[1753333518038,1.93986744,118010.0,118000.0,0.7865183]
[1753333518232,1.93986744,118010.0,118000.0,0.61712]
[1753333518934,1.93986744,118010.0,118000.0,0.7865183]
[1753333521442,1.93986744,118010.0,118000.0,0.61712]
[1753333522038,1.93986744,118010.0,118000.0,0.7865183]
[1753333522639,1.93986744,118010.0,118000.0,0.61712]
[1753333529945,1.9197656,118010.0,118000.0,0.61712]
[1753333530151,1.93987626,118010.0,118000.0,0.61712]
[1753333531139,0.4470126,117990.0,117980.0,0.67634078]
[1753333531345,0.46712326,117990.0,117980.0,1.29190078]
[1753333531746,0.46712326,117990.0,117980.0,0.99450078]
[1753333531940,0.46712326,117990.0,117980.0,1.02661078]
[1753333532641,0.46712326,117990.0,117980.0,1.02861078]
[1753333533344,0.46712326,117990.0,117980.0,0.95414458]
[1753333533655,0.46712326,117990.0,117980.0,0.95306458]
[1753333533846,0.46712326,117990.0,117980.0,0.95506458]
[1753333534042,0.46712326,117990.0,117980.0,0.003]
[1753333534348,0.46712326,117990.0,117980.0,0.61844]
[1753333534735,0.46712326,117990.0,117980.0,0.61744]
[1753333536144,0.46712326,117990.0,117980.0,0.61644]
[1753333536349,0.46812326,117990.0,117980.0,0.61544]
[1753333537050,0.46812326,117990.0,117980.0,0.784867]
[1753333539347,0.46812326,117990.0,117980.0,0.61544]
[1753333539651,0.46812326,117990.0,117980.0,0.784867]
[1753333541150,0.46812326,117990.0,117980.0,0.825587]
[1753333541348,0.46812326,117990.0,117980.0,0.839167]
[1753333541651,0.46812326,117990.0,117980.0,0.878927]
[1753333541950,0.46812326,117990.0,117980.0,0.879007]
[1753333542451,0.29871066,117990.0,117980.0,0.879007]
[1753333542654,0.46812326,117990.0,117980.0,0.879007]
[1753333542952,0.46712326,117990.0,117980.0,0.881007]
[1753333543745,0.46712326,117990.0,117980.0,0.872517]
[1753333544046,0.46712326,117990.0,117980.0,0.70309]
[1753333544246,0.46325326,117990.0,117980.0,0.841247]
[1753333545049,0.4451757,117960.0,117950.0,0.0543]
[1753333545251,0.4451757,117960.0,117950.0,0.67002]
[1753333545441,0.46523197,117960.0,117950.0,0.61572]
[1753333545844,0.2063145,117940.0,117930.0,0.01368562]
[1753333546144,0.46525641,117940.0,117930.0,0.05440562]
[1753333546344,0.4412045,117940.0,117930.0,0.84170442]
[1753333547252,0.4412045,117940.0,117930.0,0.87297442]
[1753333547652,0.4412045,117940.0,117930.0,0.88124882]
[1753333548052,0.4422045,117940.0,117930.0,0.004]
[1753333548253,0.46222446,117940.0,117930.0,0.62136]
[1753333548553,0.46122446,117940.0,117930.0,0.61736]
[1753333548754,0.46322446,117940.0,117930.0,0.61836]
[1753333549155,0.46322446,117940.0,117930.0,0.62336]
[1753333549653,0.46122446,117940.0,117930.0,0.62236]
[1753333549955,0.46522446,117940.0,117930.0,0.61836]
[1753333550352,0.46522446,117940.0,117930.0,0.67266]
[1753333551960,0.46522446,117940.0,117930.0,0.70393]
[1753333552257,0.46522446,117940.0,117930.0,0.8421588]
[1753333552556,0.19031996,117940.0,117930.0,0.8819188]
[1753333552748,0.05148,117940.0,117930.0,0.8819188]
[1753333552952,0.2209645,117940.0,117930.0,0.8819188]
[1753333553449,0.3397845,117940.0,117930.0,0.8819188]
[1753333554147,0.4492045,117940.0,117930.0,0.70393]
[1753333554552,0.4492045,117940.0,117930.0,0.8734288]
[1753333555758,0.4492045,117940.0,117930.0,0.61836]
[1753333555759,0.46916494,117940.0,117930.0,0.61836]
[1753333555958,0.46916333,117940.0,117930.0,0.61836]
[1753333557465,0.46916333,117940.0,117930.0,0.65908]
[1753333560168,0.46916333,117940.0,117930.0,0.67266]
[1753333560570,0.46916333,117940.0,117930.0,0.8421588]
[1753333560763,0.46916333,117940.0,117930.0,0.67266]
[1753333561071,0.46916333,117940.0,117930.0,0.70211]
[1753333561275,0.4492045,117940.0,117930.0,0.70211]
[1753333561466,0.46917473,117940.0,117930.0,0.70211]
[1753333561775,0.46917473,117940.0,117930.0,0.67266]
[1753333562070,0.46917473,117940.0,117930.0,0.8421588]
[1753333562472,0.46917473,117940.0,117930.0,0.67266]
[1753333564778,0.46917473,117940.0,117930.0,0.61836]
[1753333565384,0.46917473,117940.0,117930.0,0.001]
[1753333568184,0.4397776,117910.0,117900.0,0.41674547]
[1753333568383,0.3928819,117900.0,117890.0,0.99268]
[1753333568686,0.4397919,117900.0,117890.0,0.99268]
[1753333569086,0.4397919,117900.0,117890.0,1.00093696]
[1753333569276,0.45979289,117900.0,117890.0,1.00093696]
[1753333569478,0.45779289,117900.0,117890.0,1.00393696]
[1753333570390,0.45779289,117900.0,117890.0,1.00793696]
[1753333571090,0.45779289,117900.0,117890.0,1.07597304]
[1753333571694,0.45779289,117900.0,117890.0,0.97886696]
[1753333573394,0.45779289,117900.0,117890.0,0.68146696]
[1753333574895,0.45782639,117900.0,117890.0,0.68146696]
[1753333575096,0.45782639,117900.0,117890.0,0.67321]
[1753333576187,0.45782639,117900.0,117890.0,0.68145003]
[1753333577093,0.45782639,117900.0,117890.0,0.71052003]
[1753333577998,0.45782639,117900.0,117890.0,0.88007633]
[1753333578597,0.45782639,117900.0,117890.0,0.71052003]
[1753333579088,0.45782639,117900.0,117890.0,0.88007633]
[1753333580903,0.06794449,117900.0,117890.0,0.88668633]
[1753333581600,0.02103449,117900.0,117890.0,0.88668633]
[1753333581996,0.04691,117910.0,117900.0,0.1929719]
[1753333582195,0.2164375,117910.0,117900.0,0.2076219]
[1753333582802,0.2800075,117910.0,117900.0,0.2076219]
[1753333583002,0.3325775,117910.0,117900.0,0.2076219]
[1753333583198,0.3325775,117910.0,117900.0,0.2086219]
[1753333583401,0.3325775,117910.0,117900.0,0.2106219]
[1753333584499,0.2800075,117910.0,117900.0,0.2106219]
[1753333586208,0.3325775,117910.0,117900.0,0.2106219]
[1753333587101,0.137332,117920.0,117910.0,0.1695276]
[1753333587304,0.3325738,117920.0,117910.0,0.8239276]
[1753333587809,0.2800038,117920.0,117910.0,0.8239276]
[1753333588306,0.3335738,117920.0,117910.0,0.8239276]
[1753333588508,0.3335738,117920.0,117910.0,0.8249276]
[1753333589905,0.2810038,117920.0,117910.0,0.8249276]
[1753333590211,0.2174232,117920.0,117910.0,0.8249276]
[1753333590398,0.2809932,117920.0,117910.0,0.8249276]
[1753333591305,0.3335632,117920.0,117910.0,0.8249276]
[1753333594015,0.3534991,117920.0,117910.0,0.8249276]
[1753333594709,0.3335632,117920.0,117910.0,0.8249276]
[1753333598615,0.4383532,117920.0,117910.0,0.2086076]
[1753333598812,0.45828832,117920.0,117910.0,0.8084376]
[1753333599115,0.45828832,117920.0,117910.0,0.8085576]
[1753333599917,0.45828832,117920.0,117910.0,0.6158]
[1753333600513,0.45828832,117920.0,117910.0,0.001]
[1753333600815,0.45828832,117920.0,117910.0,0.61552]
[1753333602218,0.45828832,117920.0,117910.0,0.001]
[1753333602415,0.45828832,117920.0,117910.0,0.61692]
[1753333604818,0.45828832,117920.0,117910.0,0.7864476]
[1753333605907,0.45828832,117920.0,117910.0,0.61692]
[1753333606714,0.45828832,117920.0,117910.0,0.7864476]
[1753333607120,0.45828832,117920.0,117910.0,0.61692]
[1753333611917,0.45828832,117920.0,117910.0,0.001]
[1753333612119,0.2743176,117910.0,117900.0,0.61364]
[1753333612320,0.45659272,117910.0,117900.0,0.61364]
[1753333613315,0.45659272,117910.0,117900.0,0.61564]
[1753333614021,0.45659272,117910.0,117900.0,0.61664]
[1753333615422,0.45659272,117910.0,117900.0,0.61364]
[1753333615621,0.45759272,117910.0,117900.0,0.61364]
[1753333615819,0.4366864,117890.0,117880.0,1.18880306]
[1753333616018,0.4366864,117890.0,117880.0,1.80136306]
[1753333616415,0.4366864,117890.0,117880.0,1.80963304]
[1753333616621,0.45662272,117890.0,117880.0,1.80963304]
[1753333617724,0.45662272,117890.0,117880.0,1.97920384]
[1753333617923,0.45662272,117890.0,117880.0,1.98120384]
[1753333618219,0.45762272,117890.0,117880.0,1.78952]
[1753333618424,0.58487318,117890.0,117880.0,0.61756]
[1753333619624,0.4367152,117870.0,117860.0,0.03661582]
[1753333619826,0.4367152,117870.0,117860.0,0.01931]
[1753333620021,0.4367152,117870.0,117860.0,0.63183]
[1753333620222,0.45663585,117870.0,117860.0,0.63183]
[1753333620525,0.4367152,117870.0,117860.0,0.8014296]
[1753333621026,0.4367152,117870.0,117860.0,0.63583]
[1753333621027,0.4377152,117870.0,117860.0,0.63583]
[1753333621324,0.4387152,117870.0,117860.0,0.63883]
[1753333621723,0.3369152,117870.0,117860.0,0.62505]
[1753333621925,0.4377152,117870.0,117860.0,0.63783]
[1753333622115,0.4377152,117870.0,117860.0,0.01578]
[1753333622319,0.45762047,117870.0,117860.0,0.62878]
[1753333624924,0.45762047,117870.0,117860.0,0.62778]
[1753333625222,0.45762047,117870.0,117860.0,0.63166]
[1753333625429,0.45349047,117870.0,117860.0,0.62188]
[1753333626024,0.45349047,117870.0,117860.0,0.005]
[1753333626228,0.45349047,117870.0,117860.0,0.62184]
[1753333627427,0.45349047,117870.0,117860.0,0.005]
[1753333628631,0.45349047,117870.0,117860.0,0.003]
[1753333628832,0.45349047,117870.0,117860.0,0.004]
[1753333629034,0.45249047,117870.0,117860.0,0.001]
[1753333629335,0.45349047,117870.0,117860.0,0.003]
[1753333633337,0.275064,117850.0,117840.0,0.58032417]
[1753333633542,0.430754,117850.0,117840.0,0.75850698]
[1753333634240,0.26114,117850.0,117840.0,0.75850698]
[1753333634645,0.430754,117850.0,117840.0,0.76342698]
[1753333634939,0.431754,117850.0,117840.0,0.76742698]
[1753333635140,0.26214,117850.0,117840.0,0.76742698]
[1753333635550,0.431754,117850.0,117840.0,0.76250698]
[1753333636946,0.431754,117850.0,117840.0,0.76742698]
[1753333637240,0.43182379,117850.0,117840.0,0.76742698]
[1753333637445,0.431754,117850.0,117840.0,0.76742698]
[1753333637646,0.26214,117850.0,117840.0,0.76742698]
[1753333637846,0.431754,117850.0,117840.0,0.76742698]
[1753333638046,0.431754,117850.0,117840.0,0.77042698]
[1753333638348,0.431754,117850.0,117840.0,0.77349698]
[1753333638945,0.431754,117850.0,117840.0,0.76550698]
[1753333639649,0.431754,117850.0,117840.0,0.81327281]
[1753333640546,0.45162657,117850.0,117840.0,0.81327281]
[1753333640747,0.45162657,117850.0,117840.0,0.02832451]
[1753333641057,0.45162657,117850.0,117840.0,0.81327281]
[1753333641442,0.45163189,117850.0,117840.0,0.81327281]
[1753333644846,0.45163189,117850.0,117840.0,0.63621]
[1753333646252,0.45163189,117850.0,117840.0,0.8058385]
[1753333647345,0.45163189,117850.0,117840.0,0.62344]
[1753333648042,0.45163189,117850.0,117840.0,0.7995785]
[1753333648248,0.45163189,117850.0,117840.0,0.01351]
[1753333648443,0.45163189,117850.0,117840.0,0.1831385]
[1753333648650,0.45170168,117850.0,117840.0,0.007]
[1753333648852,0.45169856,117850.0,117840.0,0.007]
[1753333649043,0.45170168,117850.0,117840.0,0.007]
[1753333649249,0.45163189,117850.0,117840.0,0.007]
[1753333649957,0.45163189,117850.0,117840.0,0.006]
[1753333651553,0.45170168,117850.0,117840.0,0.006]
[1753333652155,0.45163189,117850.0,117840.0,0.003]
[1753333652350,0.45163189,117850.0,117840.0,0.005]
[1753333652558,0.4307685,117840.0,117830.0,0.0001]
[1753333652753,0.45071618,117840.0,117830.0,0.0001]
[1753333652952,0.44864639,117840.0,117830.0,0.0001]
[1753333653153,0.44764639,117840.0,117830.0,0.0001]
[1753333654159,0.44864639,117840.0,117830.0,0.0051]
[1753333655658,0.45064639,117840.0,117830.0,0.0041]
[1753333656450,0.44964639,117840.0,117830.0,0.0011]
[1753333656658,0.45264639,117840.0,117830.0,0.0021]
[1753333659261,0.45264639,117840.0,117830.0,0.01099]
[1753333660264,0.45264639,117840.0,117830.0,0.00682]
[1753333660460,0.45264639,117840.0,117830.0,0.0021]
[1753333661663,0.45264639,117840.0,117830.0,0.1806329]
[1753333661863,0.45264639,117840.0,117830.0,0.01099]
[1753333662468,0.45264639,117840.0,117830.0,0.0021]
[1753333672567,0.45271269,117840.0,117830.0,0.0021]
[1753333672773,0.45264639,117840.0,117830.0,0.0021]
[1753333675273,0.57976675,117840.0,117830.0,0.0021]
[1753333675673,1.19908675,117840.0,117830.0,0.0021]
[1753333675870,1.19915654,117840.0,117830.0,0.0021]
[1753333676074,0.4318975,117820.0,117810.0,0.00737852]
[1753333676275,0.45177539,117820.0,117810.0,0.00737852]
[1753333677271,0.53396106,117820.0,117810.0,0.00937852]
[1753333682081,0.66084735,117820.0,117810.0,0.00937852]
[1753333682382,1.27852735,117820.0,117810.0,0.00937852]
[1753333683181,1.27859714,117820.0,117810.0,0.00937852]
[1753333683377,1.27852735,117820.0,117810.0,0.00937852]
[1753333683582,1.27859714,117820.0,117810.0,0.00937852]
[1753333683777,1.27852735,117820.0,117810.0,0.00937852]
[1753333686081,1.27832735,117820.0,117810.0,0.00937852]
[1753333686584,1.27800735,117820.0,117810.0,0.00937852]
[1753333687979,1.27800735,117820.0,117800.0,0.005]
[1753333687980,0.2704322,117810.0,117800.0,0.005]
[1753333688279,0.2704322,117810.0,117770.0,0.3646096]
[1753333688280,0.26296,117780.0,117770.0,0.2756781]
[1753333688683,0.26302979,117780.0,117770.0,0.2756781]
[1753333688885,0.26296,117780.0,117770.0,0.2881581]
[1753333689082,0.26302979,117780.0,117770.0,0.2881581]
[1753333689281,0.26302979,117780.0,117770.0,0.2032939]
[1753333689481,0.26496,117780.0,117770.0,0.2055739]
[1753333689689,0.26496,117780.0,117770.0,0.2052939]
[1753333689890,0.26496,117780.0,117770.0,0.2055739]
[1753333690590,0.26496,117780.0,117770.0,0.21402985]
[1753333691092,0.11291,117780.0,117770.0,0.21702985]
[1753333691287,0.06404,117780.0,117770.0,0.63684585]
[1753333691489,0.1622,117790.0,117780.0,0.1697154]
[1753333691694,0.1622,117790.0,117780.0,0.2028954]
[1753333692884,0.10991,117790.0,117780.0,0.2028954]
[1753333693090,0.5174722,117810.0,117800.0,0.03318]
[1753333693297,0.28283455,117810.0,117800.0,0.2028666]
[1753333693596,0.1622,117810.0,117800.0,0.2028666]
[1753333694598,0.1642,117810.0,117800.0,0.2028666]
[1753333694993,0.11191,117810.0,117800.0,0.37264259]
[1753333695791,0.11191,117810.0,117800.0,0.2028666]
[1753333696393,0.1642,117810.0,117800.0,0.2028666]
[1753333697490,0.1642,117810.0,117800.0,0.5002666]
[1753333699696,0.1642,117810.0,117800.0,1.1227466]
[1753333702900,0.1642,117810.0,117800.0,0.5002666]
[1753333703104,0.1642,117810.0,117800.0,1.1215866]
[1753333703404,0.1642,117810.0,117800.0,0.5002666]
[1753333703599,0.26496,117810.0,117800.0,1.1214666]
[1753333705806,0.1968,117810.0,117800.0,1.1214666]
[1753333706506,0.1642,117810.0,117800.0,1.1214666]
[1753333709400,0.1642,117810.0,117800.0,1.12159955]
[1753333710204,0.11191,117810.0,117800.0,1.12159955]
[1753333710909,0.1622,117820.0,117810.0,0.2028529]
[1753333711109,0.28281918,117820.0,117810.0,0.2028529]
[1753333711711,0.26296,117820.0,117810.0,0.2028529]
[1753333712011,0.26496,117820.0,117810.0,0.2038529]
[1753333712711,0.28481877,117820.0,117810.0,0.2038529]
[1753333712906,0.28681877,117820.0,117810.0,0.2048529]
[1753333713602,0.1696441,117830.0,117820.0,0.1696585]
[1753333713603,0.15538,117830.0,117820.0,0.1696585]
[1753333713807,0.10526,117830.0,117820.0,0.8206585]
[1753333714503,0.15538,117830.0,117820.0,0.8206585]
[1753333715208,0.4281841,117830.0,117820.0,1.1066185]
[1753333715412,0.4281841,117830.0,117820.0,1.1063785]
[1753333715413,0.25854,117830.0,117820.0,1.1063785]
[1753333715814,0.26054,117830.0,117820.0,1.1073785]
[1753333716009,0.26054,117830.0,117820.0,1.1229021]
[1753333716215,0.26054,117830.0,117820.0,1.1353821]
[1753333718813,1.76054,117830.0,117820.0,1.1353821]
[1753333719516,1.76054,117830.0,117820.0,1.1343821]
[1753333719917,1.76054,117830.0,117820.0,0.5170221]
[1753333720114,1.76054,117830.0,117820.0,1.1343421]
[1753333721115,0.26054,117830.0,117820.0,0.8369421]
[1753333722215,0.22289,117830.0,117820.0,0.8369421]
[1753333722412,0.19245,117830.0,117820.0,0.8369421]
[1753333722817,0.22289,117830.0,117820.0,0.8369421]
[1753333723110,0.26054,117830.0,117820.0,0.8369421]
[1753333725716,0.2805616,117830.0,117820.0,0.8369421]
[1753333727119,0.2805616,117830.0,117820.0,1.1343421]
[1753333727820,0.2805616,117830.0,117820.0,1.1198621]
[1753333728217,0.2805616,117830.0,117820.0,1.1323421]
[1753333730617,0.2805616,117830.0,117820.0,1.1313021]
[1753333733024,0.2805616,117830.0,117820.0,0.8339021]
[1753333734620,0.2429116,117830.0,117820.0,0.8339021]
[1753333735219,0.2805616,117830.0,117820.0,0.8339021]
[1753333738225,0.2805616,117830.0,117820.0,0.8214221]
[1753333739129,0.2805616,117830.0,117820.0,0.2071421]
[1753333739332,0.2805616,117830.0,117820.0,0.8208621]
[1753333740831,0.2805616,117830.0,117820.0,0.8333421]
[1753333741327,0.2805616,117830.0,117820.0,0.2196221]
[1753333741529,0.2805616,117830.0,117820.0,0.8207821]
[1753333742931,0.2805616,117830.0,117820.0,0.8332621]
[1753333744226,0.2805616,117830.0,117820.0,0.8207821]
[1753333745124,0.2805616,117830.0,117820.0,0.8332621]
[1753333749735,0.450207,117830.0,117820.0,0.8332621]
[1753333750036,0.450207,117830.0,117820.0,0.8207821]
[1753333750632,0.450207,117830.0,117820.0,0.2071421]
[1753333750836,0.450207,117830.0,117820.0,0.8189021]
[1753333751135,0.4222342,117810.0,117800.0,0.23219645]
[1753333751334,0.4422558,117810.0,117800.0,0.00013295]
[1753333752434,0.4432558,117810.0,117800.0,0.00413295]
[1753333753933,0.4432558,117810.0,117800.0,0.00213295]
[1753333754339,0.4442558,117810.0,117800.0,0.00313295]
[1753333754531,1.0580558,117810.0,117800.0,0.00313295]
[1753333754928,0.4442558,117810.0,117800.0,0.00313295]
[1753333755348,0.4442558,117810.0,117800.0,0.17282155]
[1753333755543,0.4442558,117810.0,117800.0,0.00313295]
[1753333757435,0.57081838,117810.0,117800.0,0.001]
[1753333757639,0.57081838,117810.0,117760.0,0.29521784]
[1753333757640,0.4222919,117770.0,117760.0,0.29521784]
[1753333758435,0.4222919,117770.0,117760.0,0.27966627]
[1753333758637,0.25256,117770.0,117760.0,0.27966627]
[1753333758834,1.9222918,117770.0,117760.0,0.27966627]
[1753333759834,1.9232918,117770.0,117760.0,0.28166627]
[1753333760042,1.9252918,117770.0,117760.0,0.28466627]
[1753333761442,1.99185205,117770.0,117760.0,0.28466627]
[1753333761742,1.9252918,117770.0,117760.0,0.28466627]
[1753333761934,1.9252918,117770.0,117760.0,0.29831394]
[1753333762341,1.9252918,117770.0,117760.0,0.01864767]
[1753333762645,1.9252918,117770.0,117760.0,0.82801387]
[1753333763346,1.9252918,117770.0,117760.0,0.82781387]
[1753333763743,1.9252918,117770.0,117760.0,0.65806767]
[1753333763944,1.9252918,117770.0,117760.0,0.82781387]
[1753333764244,1.9252918,117770.0,117760.0,0.7891862]
[1753333765145,1.9252918,117770.0,117760.0,0.8141662]
[1753333766247,1.99297413,117770.0,117760.0,0.8141662]
[1753333769853,1.99297413,117770.0,117760.0,0.7891862]
[1753333771057,1.99297413,117770.0,117760.0,0.005]
[1753333771264,1.99297413,117770.0,117760.0,0.7875463]
[1753333771758,1.99297413,117770.0,117760.0,0.005]
[1753333772565,1.99297413,117770.0,117760.0,0.1747463]
[1753333773665,1.99297413,117770.0,117760.0,0.005]
[1753333773966,2.01315277,117770.0,117760.0,0.005]
[1753333774156,2.62551277,117770.0,117760.0,0.005]
[1753333774357,2.62535277,117770.0,117760.0,0.005]
[1753333775369,0.4218863,117760.0,117750.0,0.1697595]
[1753333776166,0.4218863,117760.0,117750.0,0.18367956]
[1753333776365,0.4218863,117760.0,117750.0,0.1697595]
[1753333776562,0.4228863,117760.0,117750.0,0.1717595]
[1753333776767,0.4248863,117760.0,117750.0,0.1737595]
[1753333777163,0.44507572,117760.0,117750.0,0.1737595]
[1753333777768,0.44507572,117760.0,117750.0,0.18732395]
[1753333778266,0.44507572,117760.0,117750.0,0.18532395]
[1753333778570,0.44507572,117760.0,117750.0,0.1717595]
[1753333778973,0.44507572,117760.0,117750.0,0.1697595]
[1753333779470,0.44407572,117760.0,117750.0,0.7805595]
[1753333779665,0.44607572,117760.0,117750.0,0.7805595]
[1753333780271,0.44607572,117760.0,117750.0,0.1697595]
[1753333780468,0.44607572,117760.0,117750.0,0.7805995]
[1753333780661,0.44807572,117760.0,117750.0,0.8055395]
[1753333780862,0.44807572,117760.0,117750.0,0.8211295]
[1753333781268,0.44807572,117760.0,117750.0,0.8055395]
[1753333781469,0.44807572,117760.0,117750.0,0.81946928]
[1753333783180,0.44807572,117760.0,117750.0,0.79449058]
[1753333784679,0.44807572,117760.0,117750.0,0.81943058]
[1753333788382,0.44807572,117760.0,117750.0,0.22422058]
[1753333788584,0.44807572,117760.0,117750.0,0.83494058]
[1753333788775,0.13067942,117760.0,117750.0,0.83494058]
[1753333789085,0.08363942,117760.0,117750.0,0.83494058]
[1753333790977,0.08363942,117760.0,117750.0,0.85186446]
[1753333791678,0.13067942,117760.0,117750.0,0.85186446]
[1753333791873,0.18047942,117760.0,117750.0,0.85186446]
[1753333792276,0.02618942,117760.0,117750.0,1.02171246]
[1753333793181,0.08363942,117760.0,117750.0,1.02171246]
[1753333793580,0.35022572,117760.0,117750.0,0.41099246]
[1753333793884,0.35022572,117760.0,117750.0,1.02067246]
[1753333794385,0.44807572,117760.0,117750.0,0.85130423]
[1753333795282,0.44817614,117760.0,117750.0,0.85130423]
[1753333796988,0.27842984,117760.0,117750.0,0.85130423]